[Event "*** SCC Grand Prix: Titled Tuesday Blitz"]
[Site "Chess.com"]
[Date "2020.09.08"]
[Round "5"]
[White "DrMamaliga"]
[Black "reniite"]
[Result "1-0"]
[WhiteElo "2195"]
[BlackElo "1894"]
[TimeControl "180+1"]
[EndTime "10:54:42 PDT"]
[Termination "DrMamaliga won by resignation"]

1. e4 {[%clk 0:03:00.9]} 1... e5 {[%clk 0:02:57]} 2. Nf3 {[%clk 0:03:00.6]} 2...
Nc6 {[%clk 0:02:57.5]} 3. Bb5 {[%clk 0:03:00.1]} 3... a6 {[%clk 0:02:56.5]} 4.
Ba4 {[%clk 0:03:00]} 4... Nf6 {[%clk 0:02:57]} 5. O-O {[%clk 0:02:59.5]} 5...
Be7 {[%clk 0:02:55.5]} 6. Re1 {[%clk 0:02:55.3]} 6... b5 {[%clk 0:02:55.4]} 7.
Bb3 {[%clk 0:02:53.7]} 7... d6 {[%clk 0:02:53.3]} 8. c3 {[%clk 0:02:53.3]} 8...
Bg4 {[%clk 0:02:50]} 9. h3 {[%clk 0:02:50.9]} 9... Bh5 {[%clk 0:02:30]} 10. d3
{[%clk 0:02:50.4]} 10... Na5 {[%clk 0:02:26.8]} 11. Bc2 {[%clk 0:02:49.4]} 11...
c5 {[%clk 0:02:25.6]} 12. Be3 {[%clk 0:02:48.7]} 12... O-O {[%clk 0:02:20]} 13.
Nbd2 {[%clk 0:02:47.5]} 13... Rc8 {[%clk 0:01:58.2]} 14. Qb1 {[%clk 0:02:41.6]}
14... Nc6 {[%clk 0:01:51.7]} 15. a4 {[%clk 0:02:36]} 15... d5 {[%clk 0:01:37]}
16. exd5 {[%clk 0:02:31.8]} 16... Nxd5 {[%clk 0:01:31.5]} 17. axb5 {[%clk
0:02:30]} 17... axb5 {[%clk 0:01:30.6]} 18. Ra6 {[%clk 0:02:17.9]} 18... Bg6
{[%clk 0:00:23.4]} 19. Ne4 {[%clk 0:02:11.5]} 19... c4 {[%clk 0:00:21.6]} 20. d4
{[%clk 0:02:00.8]} 20... Nxe3 {[%clk 0:00:21.3]} 21. fxe3 {[%clk 0:02:00.1]}
21... exd4 {[%clk 0:00:21.8]} 22. exd4 {[%clk 0:02:00.1]} 22... Bf6 {[%clk
0:00:20.8]} 23. Nxf6+ {[%clk 0:01:53.9]} 23... gxf6 {[%clk 0:00:20.8]} 24. Bf5
{[%clk 0:01:45.2]} 24... Kg7 {[%clk 0:00:21]} 25. Bxc8 {[%clk 0:01:44.9]} 25...
Qxc8 {[%clk 0:00:21.9]} 26. Qa2 {[%clk 0:01:41.2]} 26... Qb7 {[%clk 0:00:19.4]}
27. Qa3 {[%clk 0:01:34.6]} 27... Ne7 {[%clk 0:00:19.7]} 28. Ra7 {[%clk
0:01:33.4]} 28... Qd5 {[%clk 0:00:19.2]} 1-0

[Event "*** SCC Grand Prix: Titled Tuesday Blitz"]
[Site "Chess.com"]
[Date "2020.09.08"]
[Round "5"]
[White "chesslh19"]
[Black "romulocardoso"]
[Result "1-0"]
[WhiteElo "2208"]
[BlackElo "2030"]
[TimeControl "180+1"]
[EndTime "10:54:47 PDT"]
[Termination "chesslh19 won by resignation"]

1. e4 {[%clk 0:03:00.9]} 1... c5 {[%clk 0:02:12.3]} 2. Nf3 {[%clk 0:02:59.4]}
2... d6 {[%clk 0:02:11]} 3. d4 {[%clk 0:02:59.9]} 3... cxd4 {[%clk 0:02:11.9]}
4. Nxd4 {[%clk 0:03:00.7]} 4... Nf6 {[%clk 0:02:12.2]} 5. Nc3 {[%clk 0:03:01.4]}
5... g6 {[%clk 0:02:12.6]} 6. Be3 {[%clk 0:03:00.8]} 6... Bg7 {[%clk 0:02:13]}
7. f3 {[%clk 0:03:01.6]} 7... O-O {[%clk 0:02:13.4]} 8. Qd2 {[%clk 0:03:02.2]}
8... Nc6 {[%clk 0:02:13.7]} 9. O-O-O {[%clk 0:03:02.8]} 9... Bd7 {[%clk
0:02:13.6]} 10. g4 {[%clk 0:03:02.1]} 10... Rc8 {[%clk 0:02:13.7]} 11. h4 {[%clk
0:02:56.3]} 11... h5 {[%clk 0:02:13.6]} 12. gxh5 {[%clk 0:02:51.6]} 12... Nxh5
{[%clk 0:02:14.5]} 13. Rg1 {[%clk 0:02:52.1]} 13... Ne5 {[%clk 0:02:14.6]} 14.
Bh6 {[%clk 0:02:38]} 14... Nc4 {[%clk 0:02:13.4]} 15. Bxc4 {[%clk 0:02:37.6]}
15... Rxc4 {[%clk 0:02:14.3]} 16. Bxg7 {[%clk 0:02:35.8]} 16... Kxg7 {[%clk
0:02:15.2]} 17. Rg5 {[%clk 0:02:23.8]} 17... Rc5 {[%clk 0:02:12]} 18. Rxc5
{[%clk 0:01:38.6]} 18... dxc5 {[%clk 0:02:12.9]} 19. Nde2 {[%clk 0:01:34.9]}
19... e6 {[%clk 0:01:41.1]} 20. Qxd7 {[%clk 0:01:32.3]} 20... Qxh4 {[%clk
0:01:41.1]} 21. Kb1 {[%clk 0:01:23.1]} 21... Qf2 {[%clk 0:01:39.7]} 22. Qd2
{[%clk 0:01:16.4]} 22... Qxf3 {[%clk 0:01:38.8]} 23. a3 {[%clk 0:01:07.5]} 23...
f5 {[%clk 0:01:37.7]} 24. exf5 {[%clk 0:01:04.7]} 24... exf5 {[%clk 0:01:38.6]}
25. Nc1 {[%clk 0:00:54.7]} 25... f4 {[%clk 0:01:37]} 26. Nd3 {[%clk 0:00:50.7]}
26... g5 {[%clk 0:01:36.2]} 27. Nxc5 {[%clk 0:00:46.1]} 27... g4 {[%clk
0:01:36.4]} 28. Ne6+ {[%clk 0:00:43.9]} 28... Kf7 {[%clk 0:01:33.7]} 29. Ng5+
{[%clk 0:00:42.7]} 29... Kg6 {[%clk 0:01:31]} 30. Nxf3 {[%clk 0:00:42.8]} 30...
gxf3 {[%clk 0:01:31.9]} 31. Qd3+ {[%clk 0:00:38.8]} 31... Kg5 {[%clk 0:01:31.4]}
32. Qxf3 {[%clk 0:00:38.6]} 32... Re8 {[%clk 0:01:30.8]} 33. Rd5+ {[%clk
0:00:38.3]} 33... Kf6 {[%clk 0:01:30]} 34. Qxh5 {[%clk 0:00:37.3]} 34... Re1+
{[%clk 0:01:30.8]} 35. Ka2 {[%clk 0:00:37.5]} 35... Re3 {[%clk 0:01:30.8]} 36.
Qf5+ {[%clk 0:00:36.4]} 36... Ke7 {[%clk 0:01:31.7]} 37. Re5+ {[%clk 0:00:35.3]}
1-0

[Event "*** SCC Grand Prix: Titled Tuesday Blitz"]
[Site "Chess.com"]
[Date "2020.09.08"]
[Round "5"]
[White "Ole83"]
[Black "gumimis"]
[Result "1-0"]
[WhiteElo "2356"]
[BlackElo "2201"]
[TimeControl "180+1"]
[EndTime "10:54:49 PDT"]
[Termination "Ole83 won by checkmate"]

1. c4 {[%clk 0:03:00.5]} 1... e5 {[%clk 0:02:58.5]} 2. Nc3 {[%clk 0:03:00.1]}
2... Nf6 {[%clk 0:02:58.7]} 3. Nf3 {[%clk 0:02:59.8]} 3... Nc6 {[%clk
0:02:57.5]} 4. g3 {[%clk 0:02:59.7]} 4... d5 {[%clk 0:02:57.8]} 5. cxd5 {[%clk
0:02:58.8]} 5... Nxd5 {[%clk 0:02:58.7]} 6. Bg2 {[%clk 0:02:59]} 6... Nb6 {[%clk
0:02:52.4]} 7. a3 {[%clk 0:02:57]} 7... Be7 {[%clk 0:02:51.6]} 8. b4 {[%clk
0:02:57.1]} 8... a6 {[%clk 0:02:42.1]} 9. Bb2 {[%clk 0:02:56.2]} 9... O-O {[%clk
0:02:41.5]} 10. Rc1 {[%clk 0:02:54.4]} 10... Re8 {[%clk 0:02:41]} 11. O-O {[%clk
0:02:52.9]} 11... Bf8 {[%clk 0:02:40.6]} 12. d3 {[%clk 0:02:52.9]} 12... Nd4
{[%clk 0:02:29.5]} 13. Ne4 {[%clk 0:02:40.7]} 13... Be6 {[%clk 0:02:07.3]} 14.
e3 {[%clk 0:02:15.8]} 14... Nxf3+ {[%clk 0:02:01]} 15. Bxf3 {[%clk 0:02:15.1]}
15... f6 {[%clk 0:01:59.1]} 16. Nc5 {[%clk 0:02:06.4]} 16... Bxc5 {[%clk
0:01:57.5]} 17. Rxc5 {[%clk 0:02:05.4]} 17... c6 {[%clk 0:01:48.9]} 18. d4
{[%clk 0:02:03.7]} 18... Bh3 {[%clk 0:01:40.9]} 19. Qb3+ {[%clk 0:01:54.3]}
19... Kh8 {[%clk 0:01:39.8]} 20. dxe5 {[%clk 0:01:52.1]} 20... Bxf1 {[%clk
0:01:15.7]} 21. exf6 {[%clk 0:01:51]} 21... gxf6 {[%clk 0:01:15.6]} 22. Kxf1
{[%clk 0:01:50]} 22... Nd5 {[%clk 0:01:03.2]} 23. Bxd5 {[%clk 0:01:46.1]} 23...
cxd5 {[%clk 0:01:03.3]} 24. Rxd5 {[%clk 0:01:41]} 24... Qe7 {[%clk 0:00:52]} 25.
Rd7 {[%clk 0:01:34.4]} 25... Qe6 {[%clk 0:00:34.2]} 26. Qd3 {[%clk 0:01:28.1]}
26... Rf8 {[%clk 0:00:22.4]} 27. Qxh7# {[%clk 0:01:24.1]} 1-0

[Event "*** SCC Grand Prix: Titled Tuesday Blitz"]
[Site "Chess.com"]
[Date "2020.09.08"]
[Round "5"]
[White "Zemerovv"]
[Black "Barmen_EV"]
[Result "1-0"]
[WhiteElo "2320"]
[BlackElo "2431"]
[TimeControl "180+1"]
[EndTime "10:54:51 PDT"]
[Termination "Zemerovv won by checkmate"]

1. Nf3 {[%clk 0:02:41.9]} 1... d5 {[%clk 0:03:00.9]} 2. g3 {[%clk 0:02:42.2]}
2... c5 {[%clk 0:03:00.1]} 3. Bg2 {[%clk 0:02:42.8]} 3... Nf6 {[%clk 0:03:00.6]}
4. d3 {[%clk 0:02:42.7]} 4... Nc6 {[%clk 0:02:59.2]} 5. O-O {[%clk 0:02:43.2]}
5... e5 {[%clk 0:02:59.5]} 6. e4 {[%clk 0:02:43]} 6... d4 {[%clk 0:02:56.7]} 7.
a4 {[%clk 0:02:41.3]} 7... Bd6 {[%clk 0:02:57.6]} 8. Nbd2 {[%clk 0:02:41]} 8...
O-O {[%clk 0:02:58.5]} 9. Nc4 {[%clk 0:02:40.9]} 9... Bc7 {[%clk 0:02:59.1]} 10.
Nh4 {[%clk 0:02:40.7]} 10... Be6 {[%clk 0:02:58.7]} 11. b3 {[%clk 0:02:38.5]}
11... a6 {[%clk 0:02:53.9]} 12. Qe1 {[%clk 0:02:32.6]} 12... b5 {[%clk
0:02:54.8]} 13. axb5 {[%clk 0:02:30.4]} 13... axb5 {[%clk 0:02:55.7]} 14. Rxa8
{[%clk 0:02:28]} 14... Qxa8 {[%clk 0:02:56.6]} 15. Nd2 {[%clk 0:02:27.4]} 15...
Ba5 {[%clk 0:02:56.7]} 16. f4 {[%clk 0:02:25.2]} 16... Ng4 {[%clk 0:02:56.7]}
17. Qe2 {[%clk 0:02:17.2]} 17... Ne3 {[%clk 0:02:55.2]} 18. f5 {[%clk
0:02:13.4]} 18... Nxf1 {[%clk 0:02:54.5]} 19. Nxf1 {[%clk 0:02:10.9]} 19... Bd7
{[%clk 0:02:53.1]} 20. f6 {[%clk 0:02:08.4]} 20... gxf6 {[%clk 0:02:52.4]} 21.
Bh6 {[%clk 0:02:05.6]} 21... Re8 {[%clk 0:02:44.4]} 22. Qh5 {[%clk 0:01:58.1]}
22... Ne7 {[%clk 0:02:11.4]} 23. Qf3 {[%clk 0:01:38.3]} 23... Ng6 {[%clk
0:02:06.5]} 24. Qxf6 {[%clk 0:01:30.8]} 24... Nxh4 {[%clk 0:00:05.6]} 25. Qg7#
{[%clk 0:01:29.5]} 1-0

[Event "*** SCC Grand Prix: Titled Tuesday Blitz"]
[Site "Chess.com"]
[Date "2020.09.08"]
[Round "5"]
[White "dretch"]
[Black "suyu28"]
[Result "1-0"]
[WhiteElo "2780"]
[BlackElo "2564"]
[TimeControl "180+1"]
[EndTime "10:54:55 PDT"]
[Termination "dretch won by resignation"]

1. d4 {[%clk 0:03:00.9]} 1... d5 {[%clk 0:02:51.6]} 2. c4 {[%clk 0:03:00.4]}
2... c6 {[%clk 0:02:46.7]} 3. Nc3 {[%clk 0:02:59.8]} 3... Nf6 {[%clk 0:02:46.4]}
4. e3 {[%clk 0:02:57.4]} 4... e6 {[%clk 0:02:40.8]} 5. b3 {[%clk 0:02:54.7]}
5... c5 {[%clk 0:02:28.9]} 6. Nf3 {[%clk 0:02:50.4]} 6... cxd4 {[%clk
0:02:27.7]} 7. exd4 {[%clk 0:02:50.6]} 7... Nc6 {[%clk 0:02:22.6]} 8. c5 {[%clk
0:02:48.4]} 8... Bd7 {[%clk 0:02:00.6]} 9. Bb5 {[%clk 0:02:46.1]} 9... Be7
{[%clk 0:01:51.7]} 10. O-O {[%clk 0:02:44.2]} 10... O-O {[%clk 0:01:41.2]} 11.
Be3 {[%clk 0:02:43.8]} 11... Ne4 {[%clk 0:01:36.7]} 12. Rc1 {[%clk 0:02:38.3]}
12... Nxc3 {[%clk 0:01:31.4]} 13. Rxc3 {[%clk 0:02:37.9]} 13... Qa5 {[%clk
0:01:31.1]} 14. Bxc6 {[%clk 0:02:31.1]} 14... Bxc6 {[%clk 0:01:09.7]} 15. Qc2
{[%clk 0:02:27.1]} 15... Rfc8 {[%clk 0:01:05.1]} 16. Rb1 {[%clk 0:02:20.7]}
16... Qb5 {[%clk 0:00:56]} 17. Ng5 {[%clk 0:02:14.5]} 17... Bxg5 {[%clk
0:00:52.9]} 18. Bxg5 {[%clk 0:02:14.4]} 18... f6 {[%clk 0:00:47.6]} 19. Rh3
{[%clk 0:02:11.7]} 19... f5 {[%clk 0:00:39.4]} 20. a4 {[%clk 0:01:39.1]} 20...
Qb4 {[%clk 0:00:37.6]} 21. Qe2 {[%clk 0:01:21.6]} 21... Qxd4 {[%clk 0:00:22.9]}
22. Qxe6+ {[%clk 0:01:21]} 22... Kh8 {[%clk 0:00:23]} 23. Qg6 {[%clk 0:01:18.6]}
23... Kg8 {[%clk 0:00:17.6]} 24. Qxh7+ {[%clk 0:01:16.3]} 24... Kf7 {[%clk
0:00:18.1]} 25. Qxf5+ {[%clk 0:01:15.8]} 1-0

[Event "*** SCC Grand Prix: Titled Tuesday Blitz"]
[Site "Chess.com"]
[Date "2020.09.08"]
[Round "5"]
[White "frederiksvane"]
[Black "GelmanAlexander"]
[Result "1-0"]
[WhiteElo "2686"]
[BlackElo "2507"]
[TimeControl "180+1"]
[EndTime "10:54:55 PDT"]
[Termination "frederiksvane won by resignation"]

1. e4 {[%clk 0:03:00.9]} 1... c5 {[%clk 0:02:57.5]} 2. Nf3 {[%clk 0:03:01.1]}
2... e6 {[%clk 0:02:57.5]} 3. d4 {[%clk 0:03:01.2]} 3... cxd4 {[%clk 0:02:57.7]}
4. Nxd4 {[%clk 0:03:02.1]} 4... d6 {[%clk 0:02:57.8]} 5. Nc3 {[%clk 0:03:02]}
5... a6 {[%clk 0:02:57.8]} 6. g3 {[%clk 0:03:02.1]} 6... Nf6 {[%clk 0:02:55.4]}
7. Bg2 {[%clk 0:03:02.5]} 7... Nbd7 {[%clk 0:02:54.7]} 8. O-O {[%clk 0:03:02.4]}
8... Be7 {[%clk 0:02:53.9]} 9. a4 {[%clk 0:03:00.7]} 9... Qc7 {[%clk 0:02:52.2]}
10. Be3 {[%clk 0:02:51.2]} 10... O-O {[%clk 0:02:51.7]} 11. Qe2 {[%clk
0:02:50.7]} 11... Ne5 {[%clk 0:02:50]} 12. Rad1 {[%clk 0:02:50]} 12... Bd7
{[%clk 0:02:49]} 13. f4 {[%clk 0:02:41.7]} 13... Ng6 {[%clk 0:02:31.2]} 14. Kh1
{[%clk 0:02:32.5]} 14... Rac8 {[%clk 0:02:29.8]} 15. f5 {[%clk 0:02:27.3]} 15...
Ne5 {[%clk 0:02:29]} 16. fxe6 {[%clk 0:02:23]} 16... fxe6 {[%clk 0:02:29.1]} 17.
Bh3 {[%clk 0:02:23.4]} 17... Qc4 {[%clk 0:02:21.5]} 18. Qxc4 {[%clk 0:02:18.8]}
18... Nxc4 {[%clk 0:02:20.7]} 19. Bc1 {[%clk 0:02:18.9]} 19... e5 {[%clk
0:01:39.4]} 20. Bxd7 {[%clk 0:02:13.5]} 20... Nxd7 {[%clk 0:01:34.6]} 21. Nd5
{[%clk 0:02:00.1]} 21... Bd8 {[%clk 0:01:23]} 22. Nf5 {[%clk 0:01:39.4]} 22...
Rf7 {[%clk 0:00:49.1]} 23. b3 {[%clk 0:01:35.2]} 23... Ncb6 {[%clk 0:00:49.2]}
24. c4 {[%clk 0:01:33.2]} 24... Nxd5 {[%clk 0:00:48.5]} 25. Rxd5 {[%clk
0:01:31.5]} 25... Nf6 {[%clk 0:00:44.8]} 26. Nxd6 {[%clk 0:01:29]} 26... Nxd5
{[%clk 0:00:43.9]} 27. Rxf7 {[%clk 0:01:24.6]} 27... Rb8 {[%clk 0:00:10.9]} 28.
exd5 {[%clk 0:01:21.7]} 1-0

[Event "*** SCC Grand Prix: Titled Tuesday Blitz"]
[Site "Chess.com"]
[Date "2020.09.08"]
[Round "5"]
[White "uthoang"]
[Black "DvaHrasta"]
[Result "0-1"]
[WhiteElo "2263"]
[BlackElo "2480"]
[TimeControl "180+1"]
[EndTime "10:54:55 PDT"]
[Termination "DvaHrasta won by resignation"]

1. d4 {[%clk 0:03:00.9]} 1... Nf6 {[%clk 0:02:59.4]} 2. Nf3 {[%clk 0:03:01.1]}
2... e6 {[%clk 0:02:59.4]} 3. g3 {[%clk 0:02:59.6]} 3... b5 {[%clk 0:02:58.2]}
4. Bg2 {[%clk 0:02:57.6]} 4... Bb7 {[%clk 0:02:58.3]} 5. O-O {[%clk 0:02:57.3]}
5... Be7 {[%clk 0:02:58.5]} 6. b3 {[%clk 0:02:56.3]} 6... b4 {[%clk 0:02:48.2]}
7. Bb2 {[%clk 0:02:55.6]} 7... O-O {[%clk 0:02:47.1]} 8. c4 {[%clk 0:02:54]}
8... bxc3 {[%clk 0:02:46.8]} 9. Nxc3 {[%clk 0:02:52.9]} 9... a5 {[%clk
0:02:43.7]} 10. e3 {[%clk 0:02:50.9]} 10... Na6 {[%clk 0:02:40.3]} 11. Rc1
{[%clk 0:02:24.4]} 11... c5 {[%clk 0:02:36.6]} 12. dxc5 {[%clk 0:02:22.1]} 12...
Nxc5 {[%clk 0:02:36.4]} 13. Nd4 {[%clk 0:02:15.2]} 13... Bxg2 {[%clk 0:02:28.9]}
14. Kxg2 {[%clk 0:02:16.1]} 14... Qb8 {[%clk 0:02:21.2]} 15. Nce2 {[%clk
0:02:02.3]} 15... a4 {[%clk 0:02:15.1]} 16. Bc3 {[%clk 0:01:46.5]} 16... Qb7+
{[%clk 0:02:12.5]} 17. Kg1 {[%clk 0:01:42.8]} 17... axb3 {[%clk 0:02:10.1]} 18.
axb3 {[%clk 0:01:41.7]} 18... Rfb8 {[%clk 0:02:04.4]} 19. b4 {[%clk 0:01:41]}
19... Nce4 {[%clk 0:02:00.5]} 20. b5 {[%clk 0:01:36.8]} 20... e5 {[%clk
0:01:36.1]} 21. Nf5 {[%clk 0:01:32.6]} 21... Ba3 {[%clk 0:01:35.8]} 22. Rb1
{[%clk 0:01:26.8]} 22... Ng5 {[%clk 0:01:33.9]} 23. Ne7+ {[%clk 0:00:47.8]}
23... Bxe7 {[%clk 0:01:30.6]} 24. f3 {[%clk 0:00:42.7]} 24... Nxf3+ {[%clk
0:01:26.8]} 25. Rxf3 {[%clk 0:00:43]} 25... Qxf3 {[%clk 0:01:25.9]} 26. Qf1
{[%clk 0:00:38.9]} 26... Qxe3+ {[%clk 0:01:23.7]} 27. Kg2 {[%clk 0:00:37.7]}
27... Ra2 {[%clk 0:01:18.7]} 28. Re1 {[%clk 0:00:35.3]} 28... Qxc3 {[%clk
0:01:16.9]} 29. Qf3 {[%clk 0:00:34.3]} 29... Qxe1 {[%clk 0:01:13.3]} 0-1

[Event "*** SCC Grand Prix: Titled Tuesday Blitz"]
[Site "Chess.com"]
[Date "2020.09.08"]
[Round "5"]
[White "Mikhail_Golubev"]
[Black "davigator"]
[Result "0-1"]
[WhiteElo "2585"]
[BlackElo "2359"]
[TimeControl "180+1"]
[EndTime "10:54:57 PDT"]
[Termination "davigator won on time"]

1. e4 {[%clk 0:02:56.8]} 1... c5 {[%clk 0:02:59.3]} 2. Nf3 {[%clk 0:02:56.7]}
2... Nc6 {[%clk 0:02:59]} 3. d4 {[%clk 0:02:56.6]} 3... cxd4 {[%clk 0:02:57.9]}
4. Nxd4 {[%clk 0:02:56.6]} 4... Nf6 {[%clk 0:02:58.5]} 5. Nc3 {[%clk 0:02:55.3]}
5... d6 {[%clk 0:02:58.5]} 6. Bc4 {[%clk 0:02:54.5]} 6... Bd7 {[%clk 0:02:57.4]}
7. Bb3 {[%clk 0:02:49.2]} 7... a6 {[%clk 0:02:55.6]} 8. Be3 {[%clk 0:02:19.9]}
8... Rc8 {[%clk 0:02:51.1]} 9. f3 {[%clk 0:01:52.3]} 9... e6 {[%clk 0:02:49]}
10. g4 {[%clk 0:01:51.6]} 10... Na5 {[%clk 0:02:47.7]} 11. g5 {[%clk 0:01:45]}
11... Nh5 {[%clk 0:02:46.9]} 12. f4 {[%clk 0:01:42.3]} 12... g6 {[%clk
0:02:47.4]} 13. f5 {[%clk 0:01:39.6]} 13... Nc4 {[%clk 0:02:40.7]} 14. fxe6
{[%clk 0:01:16.5]} 14... fxe6 {[%clk 0:02:39.5]} 15. Qe2 {[%clk 0:00:48.6]}
15... b5 {[%clk 0:02:30.9]} 16. O-O-O {[%clk 0:00:48.6]} 16... Qc7 {[%clk
0:02:16.2]} 17. Rhf1 {[%clk 0:00:39.2]} 17... Be7 {[%clk 0:02:14.9]} 18. Bxc4
{[%clk 0:00:19.8]} 18... Qxc4 {[%clk 0:02:11.7]} 19. Qd2 {[%clk 0:00:15.3]}
19... b4 {[%clk 0:02:06.3]} 20. Nb1 {[%clk 0:00:14]} 20... e5 {[%clk 0:02:04.5]}
21. Nb3 {[%clk 0:00:12.2]} 21... Be6 {[%clk 0:01:48.5]} 22. Na5 {[%clk 0:00:05]}
22... Qb5 {[%clk 0:01:46.3]} 23. Nb3 {[%clk 0:00:05.1]} 23... a5 {[%clk
0:01:46.3]} 24. Qd3 {[%clk 0:00:03.5]} 24... Bc4 {[%clk 0:01:44.9]} 25. Qd2
{[%clk 0:00:03.3]} 25... Bxf1 {[%clk 0:01:43.5]} 26. Nxa5 {[%clk 0:00:03.1]}
26... Bh3 {[%clk 0:01:32.4]} 27. Nb3 {[%clk 0:00:02.2]} 27... Be6 {[%clk
0:01:31.3]} 0-1

[Event "*** SCC Grand Prix: Titled Tuesday Blitz"]
[Site "Chess.com"]
[Date "2020.09.08"]
[Round "5"]
[White "Morshynska"]
[Black "ClydeHillKid"]
[Result "0-1"]
[WhiteElo "2164"]
[BlackElo "2349"]
[TimeControl "180+1"]
[EndTime "10:55:04 PDT"]
[Termination "ClydeHillKid won by resignation"]

1. e4 {[%clk 0:03:00.3]} 1... e6 {[%clk 0:02:59.8]} 2. d4 {[%clk 0:02:58.7]}
2... d5 {[%clk 0:02:59.3]} 3. Nd2 {[%clk 0:02:59.1]} 3... Nf6 {[%clk 0:02:58.9]}
4. e5 {[%clk 0:02:58]} 4... Nfd7 {[%clk 0:02:58.8]} 5. Bd3 {[%clk 0:02:58.7]}
5... c5 {[%clk 0:02:59.4]} 6. c3 {[%clk 0:02:59.4]} 6... Nc6 {[%clk 0:03:00.1]}
7. Ne2 {[%clk 0:02:59.7]} 7... Qb6 {[%clk 0:03:00.7]} 8. Nf3 {[%clk 0:02:59.3]}
8... cxd4 {[%clk 0:03:01.2]} 9. cxd4 {[%clk 0:03:00.2]} 9... f6 {[%clk
0:03:01.9]} 10. exf6 {[%clk 0:03:00.3]} 10... Nxf6 {[%clk 0:03:02.4]} 11. O-O
{[%clk 0:02:59.1]} 11... Bd6 {[%clk 0:03:02.1]} 12. b3 {[%clk 0:02:44.6]} 12...
e5 {[%clk 0:03:00.9]} 13. dxe5 {[%clk 0:02:39.4]} 13... Nxe5 {[%clk 0:03:01.8]}
14. Ned4 {[%clk 0:02:17]} 14... O-O {[%clk 0:02:42.5]} 15. h3 {[%clk 0:02:06.5]}
15... Ne4 {[%clk 0:02:31.3]} 16. Bb2 {[%clk 0:01:48.1]} 16... Bd7 {[%clk
0:02:25.7]} 17. Rc1 {[%clk 0:01:29.6]} 17... Rae8 {[%clk 0:02:23.5]} 18. Bb1
{[%clk 0:01:13.8]} 18... Bc6 {[%clk 0:02:13.2]} 19. Qc2 {[%clk 0:01:02.9]} 19...
Nxf3+ {[%clk 0:02:09.6]} 20. Nxf3 {[%clk 0:01:03.8]} 20... Re6 {[%clk
0:01:50.5]} 21. Nd4 {[%clk 0:00:57]} 21... Rg6 {[%clk 0:01:45.2]} 22. Nxc6
{[%clk 0:00:53.4]} 22... bxc6 {[%clk 0:01:36.2]} 23. Rcd1 {[%clk 0:00:25.8]}
23... Bc5 {[%clk 0:01:20.9]} 24. Kh2 {[%clk 0:00:16.6]} 24... Bxf2 {[%clk
0:01:15.7]} 25. Qe2 {[%clk 0:00:13]} 25... Qc7+ {[%clk 0:01:07.5]} 0-1

[Event "*** SCC Grand Prix: Titled Tuesday Blitz"]
[Site "Chess.com"]
[Date "2020.09.08"]
[Round "5"]
[White "Sacbutt"]
[Black "AntonovaNadezhda"]
[Result "1-0"]
[WhiteElo "2218"]
[BlackElo "2044"]
[TimeControl "180+1"]
[EndTime "10:55:08 PDT"]
[Termination "Sacbutt won by resignation"]

1. e4 {[%clk 0:03:00.9]} 1... c5 {[%clk 0:02:59.8]} 2. Nf3 {[%clk 0:03:00.3]}
2... d6 {[%clk 0:03:00.3]} 3. d4 {[%clk 0:03:00.4]} 3... cxd4 {[%clk 0:02:59.9]}
4. Nxd4 {[%clk 0:03:01.3]} 4... Nf6 {[%clk 0:03:00]} 5. Nc3 {[%clk 0:03:02]}
5... a6 {[%clk 0:03:00.1]} 6. Bg5 {[%clk 0:03:01.3]} 6... e6 {[%clk 0:02:58.2]}
7. f4 {[%clk 0:03:01.3]} 7... Be7 {[%clk 0:02:58.1]} 8. Qf3 {[%clk 0:03:01.3]}
8... O-O {[%clk 0:02:57.4]} 9. O-O-O {[%clk 0:02:57.6]} 9... Qc7 {[%clk
0:02:56.5]} 10. g4 {[%clk 0:02:57.1]} 10... Nc6 {[%clk 0:02:51.9]} 11. Nde2
{[%clk 0:02:49.7]} 11... b5 {[%clk 0:02:48.8]} 12. Bxf6 {[%clk 0:02:48.6]} 12...
Bxf6 {[%clk 0:02:44.1]} 13. g5 {[%clk 0:02:48.1]} 13... Bxc3 {[%clk 0:02:41.3]}
14. Nxc3 {[%clk 0:02:49]} 14... b4 {[%clk 0:02:40.4]} 15. Ne2 {[%clk 0:02:47.1]}
15... Bb7 {[%clk 0:02:39.9]} 16. h4 {[%clk 0:02:27]} 16... Rfc8 {[%clk
0:02:33.3]} 17. Rd2 {[%clk 0:02:23.3]} 17... Na5 {[%clk 0:02:31.5]} 18. Nd4
{[%clk 0:02:14.7]} 18... Nc6 {[%clk 0:02:17.4]} 19. Nxc6 {[%clk 0:02:09.4]}
19... Qxc6 {[%clk 0:02:16.3]} 20. Bd3 {[%clk 0:02:07.2]} 20... a5 {[%clk
0:02:05.2]} 21. h5 {[%clk 0:02:06.1]} 21... d5 {[%clk 0:02:00.1]} 22. exd5
{[%clk 0:02:00.9]} 22... exd5 {[%clk 0:01:58.5]} 23. g6 {[%clk 0:01:56.4]} 23...
d4 {[%clk 0:01:53.9]} 24. gxh7+ {[%clk 0:01:41.1]} 24... Kh8 {[%clk 0:01:52.4]}
25. Qxc6 {[%clk 0:01:40.6]} 25... Bxc6 {[%clk 0:01:46.9]} 26. Re1 {[%clk
0:01:32.4]} 26... Re8 {[%clk 0:01:43.2]} 27. Rde2 {[%clk 0:01:29.8]} 27... f6
{[%clk 0:01:33.1]} 28. Bg6 {[%clk 0:01:21.2]} 28... Red8 {[%clk 0:01:25.8]} 29.
Re7 {[%clk 0:01:14.6]} 29... a4 {[%clk 0:01:07.8]} 30. Rc7 {[%clk 0:01:10.8]}
30... b3 {[%clk 0:00:51.3]} 31. axb3 {[%clk 0:01:01.1]} 31... axb3 {[%clk
0:00:45.3]} 32. Rxc6 {[%clk 0:00:57.5]} 32... bxc2 {[%clk 0:00:45.2]} 33. Kxc2
{[%clk 0:00:55.8]} 33... d3+ {[%clk 0:00:45.1]} 34. Bxd3 {[%clk 0:00:53.8]} 1-0